bitfinex/quotes_ETHUSD_20250318
["timestamp","ask_amount","ask_price","bid_price","bid_amount"]
[1742324255048,2.74199823,1894.1,1893.9,5.27996]
[1742324255210,2.74199823,1894.1,1894.0,5.27983]
[1742324255613,7.86599823,1894.1,1894.0,5.27983]
[1742324256451,7.86599823,1894.1,1893.9,5.27996]
[1742324256651,7.86599823,1894.1,1893.8,5.28034]
[1742324256944,2.74199823,1893.9,1893.8,5.28034]
[1742324257112,2.74199823,1893.9,1893.7,11.38579]
[1742324257725,2.74199823,1893.9,1893.8,5.28038]
[1742324258715,3.54609823,1893.9,1893.8,5.28038]
[1742324258919,10.767346,1893.7,1893.4,5.28127]
[1742324259263,10.767346,1893.7,1893.2,11.42181]
[1742324259264,2.74199823,1893.5,1893.3,5.28176]
[1742324259468,2.74199823,1893.4,1893.3,5.28162]
[1742324260026,2.74199823,1893.4,1893.2,5.28194]
[1742324260465,2.74199823,1893.4,1893.3,5.28178]
[1742324260669,2.74199823,1893.4,1893.2,5.28194]
[1742324260825,2.74199823,1893.4,1893.2,10.56388]
[1742324261020,2.74199823,1893.4,1893.2,5.28194]
[1742324261434,2.74199823,1893.4,1893.3,5.28178]
[1742324264767,3.13965808,1893.4,1893.3,5.28178]
[1742324268744,2.74199823,1893.5,1893.4,5.2815]
[1742324269073,7.86699823,1893.6,1893.5,5.28102]
[1742324272353,8.2658862,1893.6,1893.5,5.28102]
[1742324273777,8.2658862,1893.6,1893.5,5.28122]
[1742324273980,8.2658862,1893.6,1893.4,10.56288]
[1742324274487,8.2658862,1893.6,1893.5,5.28122]
[1742324277871,8.2658862,1893.6,1893.4,10.56278]
[1742324278578,8.2658862,1893.6,1893.3,5.2816]
[1742324278784,8.2658862,1893.6,1893.3,10.56317]
[1742324278785,2.74199823,1893.4,1893.3,10.56317]
[1742324280095,2.74199823,1893.4,1893.3,5.28157]
[1742324280656,10.035272,1893.2,1893.1,5.28231]
[1742324280855,2.74199823,1893.2,1893.1,5.28231]
[1742324284479,5.52388797,1893.6,1893.4,5.2815]
[1742324284675,2.74199823,1893.5,1893.3,5.28157]
[1742324285290,2.74199823,1893.5,1893.3,10.5632]
[1742324285660,2.74199823,1893.5,1893.4,5.2815]
[1742324286472,7.86799823,1893.5,1893.3,10.56323]
[1742324287500,7.86799823,1893.5,1893.4,5.2815]
[1742324287729,8.2658862,1893.6,1893.5,5.28122]
[1742324288233,7.86699823,1893.6,1893.5,5.28122]
[1742324292232,8.25438129,1893.6,1893.5,5.28122]
[1742324293187,3.12938129,1893.6,1893.5,5.28122]
[1742324293388,8.25438129,1893.6,1893.5,5.28122]
[1742324296362,9.00698129,1893.6,1893.3,5.28173]
[1742324296627,2.74199823,1893.4,1893.3,5.28165]
[1742324297028,5.51238306,1893.6,1893.4,5.28131]
[1742324297337,2.74199823,1893.5,1893.4,10.56265]
[1742324297489,8.25438129,1893.6,1893.5,6.06462]
[1742324297685,0.38738306,1893.6,1893.5,6.06462]
[1742324297927,20.22099823,1893.9,1893.5,7.199103]
[1742324298232,5.125,1893.8,1893.7,5.28042]
[1742324298435,20.22099823,1893.9,1893.8,5.28038]
[1742324298436,25.34599823,1893.9,1893.8,5.28038]
[1742324299419,25.34599823,1893.9,1893.8,6.08578]
[1742324299598,3.14455721,1894.1,1894.0,5.27956]
[1742324299814,8.26955721,1894.1,1894.0,5.27956]
[1742324300521,8.26855721,1894.1,1894.0,5.27956]
[1742324300703,8.26855721,1894.1,1893.9,5.27989]
[1742324302622,5.27989,1893.9,1893.7,5.28052]
[1742324302850,2.74199823,1893.9,1893.8,5.28038]
[1742324303143,2.74199823,1893.9,1893.7,5.28052]
[1742324303307,2.74199823,1893.9,1893.6,6.09572]
[1742324303308,2.74199823,1893.9,1893.6,6.09565]
[1742324303508,2.74199823,1893.7,1893.6,9.09565]
[1742324304124,2.74199823,1893.7,1893.6,8.28085]
[1742324304818,2.74199823,1893.7,1893.6,5.28085]
[1742324308159,2.74199823,1893.7,1893.5,5.28117]
[1742324308363,7.86499823,1893.7,1893.5,5.28117]
[1742324308561,7.86499823,1893.7,1893.4,19.70281]
[1742324308713,2.74199823,1893.5,1893.4,8.28134]
[1742324308914,2.74199823,1893.5,1893.4,5.28134]
[1742324309662,2.74199823,1893.5,1893.3,5.28174]
[1742324309861,2.74199823,1893.5,1893.3,10.56336]
[1742324310255,2.74199823,1893.5,1893.3,5.28162]
[1742324310463,2.74199823,1893.5,1893.2,13.56393]
[1742324310794,2.74199823,1893.3,1893.2,8.2819]
[1742324311679,2.74199823,1893.3,1893.2,5.2819]
[1742324312373,2.74199823,1893.5,1893.4,5.28125]
[1742324312572,2.74199823,1893.5,1893.4,6.04745]
[1742324312761,2.74199823,1893.5,1893.4,5.28125]
[1742324313160,2.74199823,1893.5,1893.4,6.07065]
[1742324313474,2.74199823,1893.5,1893.4,5.28125]
[1742324314535,2.74199823,1893.5,1893.3,10.5632]
[1742324314736,2.74199823,1893.5,1893.4,5.2815]
[1742324318181,0.39438771,1893.6,1893.5,5.28122]
[1742324318672,7.86499823,1893.7,1893.6,5.28094]
[1742324321075,7.86499823,1893.7,1893.5,10.56236]
[1742324321300,7.86499823,1893.7,1893.6,5.28094]
[1742324321876,8.25977479,1893.7,1893.5,5.28114]
[1742324322279,8.25977479,1893.7,1893.5,5.28108]
[1742324322481,8.25977479,1893.7,1893.6,5.28094]
[1742324323186,8.25977479,1893.7,1893.5,10.56218]
[1742324323840,8.25977479,1893.7,1893.5,5.28108]
[1742324324785,8.25977479,1893.7,1893.4,10.56281]
[1742324324955,2.74199823,1893.5,1893.4,5.28137]
[1742324325963,2.74199823,1893.5,1893.3,10.56338]
[1742324326163,2.74199823,1893.5,1893.4,5.2815]
[1742324327066,2.74199823,1893.5,1893.3,5.28165]
[1742324327283,2.74199823,1893.5,1893.3,10.5633]
[1742324327800,3.09323805,1893.5,1893.3,5.28165]
[1742324328166,3.09323805,1893.5,1893.3,10.56322]
[1742324328594,3.09323805,1893.5,1893.3,5.28157]
[1742324328790,3.09323805,1893.5,1893.2,11.42201]
[1742324329028,2.74199823,1893.3,1893.2,10.56399]
[1742324329191,2.74199823,1893.3,1893.2,5.28198]
[1742324332078,7.86399823,1893.5,1893.4,5.2815]
[1742324332579,0.39477656,1893.7,1893.6,5.28094]
[1742324332781,3.53589823,1893.8,1893.6,5.28094]
[1742324333294,3.53589823,1893.8,1893.6,5.28085]
[1742324335606,3.53589823,1893.8,1893.6,5.28081]
[1742324335778,3.93520497,1893.8,1893.6,5.28081]
[1742324335991,3.93520497,1893.8,1893.6,10.56165]
[1742324336220,3.93520497,1893.8,1893.7,5.28066]
[1742324336571,1.19320674,1893.8,1893.6,5.28081]
[1742324336725,3.93520497,1893.8,1893.6,5.28081]
[1742324336883,3.14130497,1893.8,1893.6,5.28081]
[1742324337428,3.14130497,1893.8,1893.7,5.28066]
[1742324340351,2.74199823,1893.8,1893.7,5.28066]
[1742324342965,3.13995237,1893.8,1893.7,5.28066]
[1742324343659,3.13995237,1893.8,1893.5,5.28113]
[1742324343877,2.74199823,1893.6,1893.5,5.28113]
[1742324349547,5.48399646,1893.6,1893.2,6.14]
[1742324349751,2.74199823,1893.3,1893.1,5.28209]
[1742324350793,2.74199823,1893.3,1893.2,5.28206]
[1742324351796,7.86299823,1893.5,1893.4,5.28122]
[1742324352594,5.121,1893.5,1893.4,5.28122]
[1742324352793,7.86299823,1893.5,1893.4,5.28122]
[1742324353179,2.74199823,1893.5,1893.4,5.28122]
[1742324353353,0.39795414,1893.8,1893.6,5.28083]
[1742324353696,2.74199823,1893.7,1893.6,5.28083]
[1742324354595,2.74199823,1893.7,1893.6,8.28083]
[1742324354780,2.74199823,1893.7,1893.6,9.10313]
[1742324354979,2.74199823,1893.7,1893.6,10.541561]
[1742324355697,5.121,1893.9,1893.8,5.28038]
[1742324355883,2.74199823,1893.9,1893.8,5.28038]
[1742324356558,2.74199823,1894.0,1893.9,5.2801]
[1742324356881,2.74199823,1894.0,1893.9,6.1118]
[1742324358305,2.74199823,1894.0,1893.9,7.251008]
[1742324358904,2.74199823,1894.0,1893.9,10.251008]
[1742324359760,2.74199823,1894.2,1894.1,5.27928]
[1742324360074,2.74199823,1894.2,1894.1,6.05258]
[1742324360659,2.74199823,1894.2,1894.1,7.185821]
[1742324363001,2.74199823,1894.4,1894.3,5.27899]
[1742324364383,2.74199823,1894.5,1894.4,5.27871]
[1742324364601,2.74199823,1894.5,1894.4,6.05921]
[1742324365308,22.595,1894.7,1894.6,5.27815]
[1742324365508,25.33699823,1894.7,1894.6,5.27815]
[1742324366680,0.38955469,1894.7,1894.6,5.27815]
[1742324366885,2.74199823,1894.9,1894.8,5.2776]
[1742324367285,2.74199823,1895.0,1894.9,5.27732]
[1742324367686,5.118,1895.1,1895.0,5.27704]
[1742324367911,5.50691946,1895.1,1895.0,5.27704]
[1742324368075,8.24891769,1895.1,1895.0,5.27704]
[1742324368276,3.13091769,1895.1,1895.0,5.27704]
[1742324368800,2.74199823,1895.3,1895.2,5.27648]
[1742324369000,5.118,1895.5,1895.3,5.27598]
[1742324369176,3.25379823,1895.4,1895.3,10.55205]
[1742324369373,3.12988545,1895.4,1895.3,10.55205]
[1742324369984,5.118,1895.5,1895.4,5.27593]
[1742324370185,2.74199823,1895.5,1895.4,5.27593]
[1742324371281,18.2962,1895.9,1895.7,5.27509]
[1742324371479,7.85899823,1895.8,1895.7,5.27509]
[1742324371672,3.14826741,1895.8,1895.7,5.27509]
[1742324375998,9.28152278,1895.8,1895.4,5.27578]
[1742324376198,2.74199823,1895.5,1895.4,8.27593]
[1742324378597,3.83459805,1895.5,1895.3,3.0]
[1742324378921,19.50115805,1895.5,1895.2,3.0]
[1742324379232,2.74199823,1895.3,1895.2,3.0]
[1742324379430,2.74199823,1895.3,1895.2,8.27648]
[1742324380635,7.85699823,1895.5,1895.4,5.27593]
[1742324382728,2.74199823,1895.5,1895.4,5.27593]
[1742324386739,2.74199823,1895.5,1895.3,10.5522]
[1742324387202,6.05107,1895.4,1895.1,5.27671]
[1742324387402,2.74199823,1895.3,1895.1,3.0]
[1742324387827,8.01823823,1895.3,1895.1,3.0]
[1742324389236,3.12945033,1895.3,1895.1,3.0]
[1742324389539,8.24345033,1895.3,1895.2,5.27648]
[1742324391238,8.24345033,1895.3,1895.2,8.27648]
[1742324391430,5.114,1895.5,1895.4,10.55158]
[1742324392030,5.114,1895.5,1895.4,5.27574]
[1742324392648,7.85599823,1895.5,1895.4,5.27574]
[1742324394953,7.85599823,1895.5,1895.3,5.27617]
[1742324395152,7.85599823,1895.5,1895.3,10.55223]
[1742324395355,0.7751,1895.6,1895.4,5.27593]
[1742324395508,2.74199823,1895.5,1895.4,5.27593]
[1742324397455,2.74199823,1895.5,1895.3,10.55218]
[1742324398650,2.74199823,1895.5,1895.4,5.27593]
[1742324400259,3.09370805,1895.5,1895.1,6.0703]
[1742324400464,2.74199823,1895.2,1895.0,13.55392]
[1742324400760,2.74199823,1895.2,1895.0,8.2769]
[1742324400929,2.74199823,1895.2,1895.1,5.27676]
[1742324401335,2.74199823,1895.2,1895.1,6.04766]
[1742324401530,2.74199823,1895.2,1895.1,7.480116]
[1742324401847,2.74199823,1895.2,1895.1,6.04766]
[1742324402763,2.74199823,1895.2,1895.1,5.27676]
[1742324405726,3.55219823,1895.2,1895.0,8.2769]
[1742324405927,8.82871823,1895.2,1894.8,5.27758]
[1742324406231,2.74199823,1895.0,1894.8,5.27751]
[1742324406426,0.8115,1894.9,1894.8,8.27751]
[1742324406623,1.21220699,1894.9,1894.8,8.27751]
[1742324407034,3.139499,1894.8,1894.5,10.55666]
[1742324407247,2.74199823,1894.6,1894.4,6.08952124]
[1742324407465,2.74199823,1894.6,1894.5,5.27843]
[1742324408182,6.32520699,1894.9,1894.7,5.27764]
[1742324408332,8.25570522,1894.9,1894.8,5.2776]
[1742324409573,8.25570522,1894.9,1894.6,5.27796]
[1742324409735,2.74199823,1894.7,1894.6,5.27796]
[1742324409938,2.74199823,1894.7,1894.5,5.27816]
[1742324410254,2.74199823,1894.7,1894.6,5.27815]
[1742324410873,2.74199823,1894.7,1894.5,5.27816]
[1742324411242,2.74199823,1894.7,1894.3,15.21121]
[1742324411428,2.74199823,1894.5,1894.4,5.27871]
[1742324411634,2.74199823,1894.5,1894.3,5.27871]
[1742324411957,7.85499823,1894.5,1894.4,5.27871]
[1742324412145,7.85499823,1894.5,1894.4,6.05551]
[1742324413071,3.26769823,1894.7,1894.6,5.27815]
[1742324413366,0.5257,1894.7,1894.6,5.27815]
[1742324415982,0.5257,1894.7,1894.5,5.27831]
[1742324416283,2.74199823,1894.6,1894.5,10.55658]
[1742324418163,2.74199823,1894.6,1894.5,11.612238]
[1742324418982,2.74199823,1894.6,1894.5,5.27827]
[1742324420586,0.5257,1894.7,1894.6,6.07965]
[1742324420787,0.5257,1894.7,1894.6,9.13242714]
[1742324421093,0.5257,1894.7,1894.6,15.21965]
[1742324422999,1e-05,1894.7,1894.6,15.21965]
[1742324423170,1e-05,1894.7,1894.6,17.65197083]
[1742324427703,2.74199823,1895.2,1895.1,5.27676]
[1742324430296,3.14269098,1895.3,1895.2,5.27648]
[1742324430474,2.74199823,1895.3,1895.2,5.27648]
[1742324430874,1.21165306,1895.7,1895.6,5.27523]
[1742324431072,2.74199823,1895.7,1895.6,5.27523]
[1742324432275,2.74199823,1895.7,1895.6,8.27523]
[1742324434906,2.74199823,1895.7,1895.5,5.27556]
[1742324435211,2.74199823,1895.7,1895.6,5.27537]
[1742324435587,9.06294461,1895.9,1895.8,5.27481]
[1742324436317,8.25194461,1895.9,1895.8,5.27481]
[1742324437235,0.8044,1895.8,1895.4,5.27584]
[1742324437436,2.74199823,1895.5,1895.4,8.27574]
[1742324437720,3.54639823,1895.5,1895.2,5.27638]
[1742324437878,2.74199823,1895.3,1895.2,5.27638]
[1742324438092,2.74199823,1895.3,1895.1,5.27658]
[1742324438294,2.74199823,1895.3,1895.1,10.55321]
[1742324438529,2.74199823,1895.3,1895.2,5.27648]
[1742324438743,3.13300138,1895.3,1895.2,5.27648]
[1742324441056,2.74199823,1895.3,1895.2,6.331786]
[1742324441262,2.74199823,1895.3,1895.2,5.27648]
[1742324442056,2.74199823,1895.3,1895.1,5.27658]
[1742324442198,2.74199823,1895.3,1895.2,5.27648]
[1742324442603,2.74199823,1895.3,1895.1,5.27658]
[1742324442833,0.7631,1895.2,1895.1,5.27676]
[1742324443206,0.7631,1895.2,1895.0,5.27688]
[1742324443405,2.74199823,1895.1,1895.0,3.0]
[1742324443733,2.74199823,1895.1,1894.8,5.27756]
[1742324444034,3.56099823,1894.9,1894.8,3.0]
[1742324444234,3.56099823,1894.9,1894.8,8.2776]
[1742324445745,3.56099823,1894.9,1894.8,3.0]
[1742324446417,3.56099823,1894.9,1894.8,8.2776]
[1742324447332,3.56099823,1894.9,1894.6,3.0]
[1742324447640,2.74199823,1894.7,1894.6,5.27815]
[1742324447841,2.74199823,1894.7,1894.5,10.5565]
[1742324448142,2.74199823,1894.9,1894.8,5.27748]
[1742324448744,2.74199823,1894.9,1894.7,5.27776]
[1742324449121,2.74199823,1894.9,1894.7,10.5555]
[1742324449310,0.8101,1894.8,1894.6,10.55618]
[1742324449512,2.74199823,1894.7,1894.6,10.55618]
[1742324449754,2.74199823,1894.9,1894.8,5.27755]
[1742324451953,2.74199823,1894.9,1894.7,5.27776]
[1742324452322,2.74199823,1894.9,1894.6,5.27804]
[1742324452520,2.74199823,1894.7,1894.6,5.27804]
[1742324453130,2.74199823,1894.7,1894.6,6.861513]
[1742324453458,2.74199823,1894.9,1894.8,5.27752]
[1742324456459,2.74199823,1894.9,1894.7,5.27775]
[1742324456632,3.51079823,1894.9,1894.7,5.27775]
[1742324457065,3.51079823,1894.9,1894.7,10.5555]
[1742324457567,3.51079823,1894.9,1894.8,5.2776]
[1742324457960,2.74199823,1894.9,1894.8,5.2776]
[1742324458534,2.74199823,1894.9,1894.8,7.61181]
[1742324458870,7.85299823,1895.1,1895.0,5.27704]
[1742324459067,0.8001,1895.0,1894.8,10.55505]
[1742324459276,3.54209823,1895.0,1894.8,5.2775]
[1742324460643,3.54209823,1895.0,1894.7,10.55551]
[1742324460843,2.74199823,1894.8,1894.7,5.27768]
[1742324461879,2.74199823,1895.0,1894.9,5.27719]
[1742324463240,0.40295012,1895.3,1895.2,5.27648]
[1742324463440,7.85299823,1895.3,1895.2,5.27648]
[1742324463878,2.74199823,1895.5,1895.4,5.27593]
[1742324465671,18.2669,1895.8,1895.5,5.27565]
[1742324465872,2.74199823,1895.6,1895.5,5.27565]
[1742324466045,2.74199823,1895.6,1895.4,10.55158]
[1742324466241,2.74199823,1895.6,1895.5,5.27565]
[1742324467780,2.74199823,1895.6,1895.4,5.27577]
[1742324467978,0.8219,1895.5,1895.3,5.27618]
[1742324468178,2.74199823,1895.4,1895.3,8.27618]
[1742324468476,2.74199823,1895.4,1895.3,9.631446]
[1742324469779,2.74199823,1895.4,1895.3,1.355266]
[1742324470076,2.74199823,1895.4,1895.2,8.27639]
[1742324470377,2.74199823,1895.4,1895.2,8.27633]
[1742324470562,3.56569823,1895.4,1895.2,8.27633]
[1742324470967,5.11,1895.3,1895.1,6.14]
[1742324471278,2.74199823,1895.2,1895.1,11.41666]
[1742324471579,2.74199823,1895.2,1895.1,6.14]
[1742324472282,2.74199823,1895.2,1895.1,11.41676]
[1742324473279,2.74199823,1895.2,1895.1,5.27676]
[1742324474350,2.74199823,1895.2,1895.0,10.55388]
[1742324474676,6.08408,1895.1,1894.8,5.27747]
[1742324474844,2.74199823,1894.9,1894.8,5.27747]
[1742324475045,2.74199823,1894.9,1894.6,5.27811]
[1742324475260,2.74199823,1894.7,1894.6,5.27806]
[1742324475482,2.74199823,1894.7,1894.6,8.27806]
[1742324475683,2.74199823,1894.7,1894.6,9.633698]
[1742324476480,5.11,1894.9,1894.8,5.2776]
[1742324476791,7.85199823,1894.9,1894.8,5.2776]
[1742324478595,5.8907,1895.2,1895.0,5.27677]
[1742324478797,2.74199823,1895.0,1894.9,5.27727]
[1742324479370,2.74199823,1895.0,1894.8,5.27748]
[1742324479766,2.74199823,1895.0,1894.9,5.27732]
[1742324479989,2.74199823,1895.0,1894.9,6.4097]
[1742324480356,2.74199823,1895.0,1894.9,5.27732]
[1742324481287,2.74199823,1895.0,1894.9,6.10422]
[1742324484091,2.74199823,1895.0,1894.9,9.10422]
[1742324484972,2.74199823,1895.0,1894.9,8.27732]
[1742324485373,2.74199823,1895.0,1894.9,5.27732]
[1742324485690,2.74199823,1895.0,1894.7,8.27779]
[1742324485691,8.76369076,1895.0,1894.7,8.27779]
[1742324485897,3.55539823,1894.8,1894.6,11.41793]
[1742324486101,3.55539823,1894.8,1894.6,5.27793]
[1742324486261,3.55539823,1894.8,1894.7,5.27788]
[1742324486592,2.74199823,1894.8,1894.6,5.27793]
[1742324486760,2.74199823,1894.8,1894.6,10.55594]
[1742324487290,2.74199823,1894.8,1894.7,5.27788]
[1742324488470,0.39017271,1895.0,1894.8,5.27759]
[1742324488681,2.74199823,1894.9,1894.8,5.27759]
[1742324488991,0.8134,1895.3,1895.0,5.27704]
[1742324489162,2.74199823,1895.1,1895.0,5.27704]
[1742324490790,2.74199823,1895.1,1894.9,10.55443]
[1742324490992,2.74199823,1895.1,1895.0,5.27704]
[1742324491224,3.13312346,1895.1,1894.8,10.55508]
[1742324491424,2.74199823,1894.9,1894.7,3.0]
[1742324491587,2.74199823,1894.9,1894.8,5.2776]
[1742324498390,2.74199823,1894.9,1894.7,8.27776]
[1742324498585,2.74199823,1894.9,1894.8,5.2776]
[1742324499797,2.74199823,1894.9,1894.7,13.55546]
[1742324500803,2.74199823,1894.9,1894.7,8.2777]
[1742324501342,2.74199823,1894.9,1894.5,11.41823]
[1742324501343,5.27768,1894.8,1894.5,11.41823]
[1742324501643,2.74199823,1894.6,1894.5,14.41823]
[1742324502529,2.74199823,1894.6,1894.5,8.27823]
[1742324502895,2.74199823,1894.6,1894.5,3.0]
[1742324503222,2.74199823,1894.6,1894.5,8.27843]
[1742324504313,2.74199823,1894.6,1894.5,9.634127]
[1742324505248,7.85199823,1894.8,1894.6,5.27791]
[1742324505409,7.85199823,1894.8,1894.7,5.27788]
[1742324506147,7.85199823,1894.8,1894.6,5.27791]
[1742324506345,7.85199823,1894.8,1894.5,8.27832]
[1742324506546,2.74199823,1894.6,1894.5,8.27832]
[1742324506851,2.74199823,1894.6,1894.5,5.27832]
[1742324507438,8.77789823,1894.6,1894.3,8.27889]
[1742324507738,2.74199823,1894.4,1894.3,8.27888]
[1742324512946,5.8995,1894.8,1894.5,5.27843]
[1742324513179,0.7952,1895.0,1894.8,5.27732]
[1742324513466,2.74199823,1894.9,1894.8,10.55475]
[1742324513669,2.74199823,1894.9,1894.8,5.27732]
[1742324517483,8.2518631,1895.1,1895.0,5.27704]
[1742324519233,7.85099823,1895.1,1895.0,5.27704]
[1742324520477,2.74199823,1895.1,1895.0,5.27704]
[1742324520689,3.50359823,1895.1,1894.9,3.0]
[1742324520899,3.50359823,1895.1,1894.9,8.2773]
[1742324521190,3.50359823,1895.1,1894.9,10.55434]
[1742324521488,3.50359823,1895.1,1894.9,5.27714]
[1742324521849,3.50359823,1895.1,1895.0,5.27704]
[1742324522551,3.50359823,1895.1,1894.9,5.27714]
[1742324523652,3.50359823,1895.1,1894.9,10.55431]
[1742324523849,3.50359823,1895.1,1894.9,5.27714]
[1742324525605,3.50359823,1895.1,1894.9,10.55432]
[1742324526400,3.50359823,1895.1,1894.9,5.27714]
[1742324527207,3.50359823,1895.1,1894.9,10.55432]
[1742324527382,3.50359823,1895.1,1894.9,5.27714]
[1742324529153,2.74199823,1895.1,1895.0,5.27704]
[1742324529508,2.74199823,1895.1,1894.9,5.27714]
[1742324529709,0.27419982,1895.0,1894.7,5.27779]
[1742324529997,2.74199823,1894.9,1894.8,8.27754]
[1742324531955,2.74199823,1894.9,1894.7,3.0]
[1742324532102,2.74199823,1894.9,1894.6,8.27802]
[1742324532309,2.74199823,1894.7,1894.5,6.14]
[1742324532512,2.74199823,1894.7,1894.6,5.27815]
[1742324533611,0.7699,1895.0,1894.8,5.27738]
[1742324533812,2.74199823,1894.9,1894.8,5.27738]
[1742324535881,5.108,1895.1,1895.0,5.27704]
[1742324536076,7.84999823,1895.1,1895.0,5.27704]
[1742324537325,7.84999823,1895.1,1894.9,10.55442]
[1742324537927,7.84999823,1895.1,1895.0,5.27704]
[1742324538083,2.74199823,1895.1,1895.0,6.08644]
[1742324538605,2.74199823,1895.3,1895.2,5.27621]
[1742324538813,0.8073,1895.6,1895.4,5.27569]
[1742324538993,2.74199823,1895.5,1895.4,5.27569]
[1742324539836,18.2645,1896.1,1896.0,5.27426]
[1742324539979,18.2645,1896.1,1895.7,3.0]
[1742324539980,5.27426,1896.0,1895.7,3.0]
[1742324540177,0.8005,1896.0,1895.8,5.27464]
[1742324540480,0.8005,1896.0,1895.7,8.27508]
[1742324540680,0.8005,1896.0,1895.8,5.2748]
[1742324540910,2.74199823,1895.9,1895.8,5.2748]
[1742324541111,2.74199823,1895.9,1895.8,5.27481]
[1742324541330,2.74199823,1895.9,1895.7,8.27491]
[1742324542017,2.74199823,1895.9,1895.7,13.54986]
[1742324542817,2.74199823,1895.9,1895.7,8.27491]
[1742324543320,2.74199823,1895.9,1895.8,5.27481]
[1742324543618,2.74199823,1896.1,1896.0,5.27426]
[1742324545013,2.74199823,1896.1,1896.0,8.27426]
[1742324545812,0.8103,1896.6,1896.3,5.27319]
[1742324545993,2.74199823,1896.4,1896.3,5.27319]
[1742324546515,2.74199823,1896.4,1896.2,5.27366]
[1742324546891,2.74199823,1896.4,1896.2,5.27353]
[1742324547097,2.74199823,1896.4,1896.3,5.27342]
[1742324547499,2.74199823,1896.4,1896.2,10.54713]
[1742324548021,2.74199823,1896.4,1896.3,5.27342]
[1742324549091,2.74199823,1896.4,1896.3,6.407085]
[1742324550822,2.74199823,1896.4,1896.3,1.133665]
[1742324551121,2.74199823,1896.4,1896.3,5.27342]
[1742324551735,2.74199823,1896.4,1896.2,5.27353]
[1742324551915,2.74199823,1896.4,1896.3,5.27342]
[1742324553395,2.74199823,1896.5,1896.4,5.27288]
[1742324554728,2.74199823,1896.5,1896.4,6.403029]
[1742324556200,2.74199823,1896.5,1896.4,5.27288]
[1742324556397,0.7612,1896.9,1896.7,5.27216]
[1742324556728,2.74199823,1896.8,1896.6,5.27243]
[1742324557026,2.74199823,1896.7,1896.5,5.27282]
[1742324557727,2.74199823,1896.7,1896.5,5.27265]
[1742324557919,2.74199823,1896.7,1896.5,10.54536]
[1742324558236,2.74199823,1896.7,1896.6,5.27259]
[1742324558431,2.74199823,1896.7,1896.6,6.04949]
[1742324559902,2.74199823,1896.7,1896.5,1.968536]
[1742324560225,5.27262,1896.6,1896.4,9.14]
[1742324560419,0.01,1896.9,1896.7,5.27221]
[1742324560632,0.01,1896.9,1896.8,6.09093]
[1742324561006,2.75199823,1896.9,1896.8,6.09093]
[1742324561202,2.75199823,1896.9,1896.8,7.227244]
[1742324561514,2.75199823,1896.9,1896.8,5.27203]
[1742324566556,8.02377823,1896.9,1896.6,8.27256]
[1742324566724,2.74199823,1896.7,1896.6,8.27257]
[1742324567218,2.74199823,1896.8,1896.6,8.27257]
[1742324568742,10.75612646,1896.8,1896.4,16.68611]
[1742324568924,2.74199823,1896.6,1896.4,16.68611]
[1742324569124,2.74199823,1896.6,1896.4,18.654721]
[1742324569521,2.74199823,1896.6,1896.5,5.27287]
[1742324570657,2.74199823,1896.6,1896.3,5.27338]
[1742324570872,2.74199823,1896.4,1896.3,5.27333]
[1742324574559,3.55019823,1896.4,1896.3,5.27333]
[1742324574746,10.107354,1896.2,1895.8,5.27477]
[1742324574929,2.74199823,1895.9,1895.8,5.27467]
[1742324575124,2.74199823,1895.9,1895.8,8.27467]
[1742324575568,5.9112,1896.5,1895.9,3.0]
[1742324575853,2.74199823,1896.3,1896.2,8.27362]
[1742324576076,7.84499823,1896.5,1896.4,5.27314]
[1742324578165,7.84499823,1896.5,1896.3,5.2733]
[1742324578364,7.84499823,1896.5,1896.3,3.0]
[1742324579234,7.84499823,1896.5,1896.3,8.27342]
[1742324579458,7.84499823,1896.5,1896.3,10.155478]
[1742324580166,7.84499823,1896.5,1896.3,15.428778]
[1742324580366,7.84499823,1896.5,1896.4,5.27314]
[1742324580545,5.103,1896.5,1896.4,5.27314]
[1742324580868,2.74199823,1896.6,1896.5,5.27262]
[1742324581065,5.103,1896.8,1896.5,5.27262]
[1742324581066,0.01,1896.9,1896.8,5.27203]
[1742324582191,0.01,1896.9,1896.8,5.32474582]
[1742324582487,0.01,1896.9,1896.8,8.32474305]
[1742324582630,0.01,1896.9,1896.8,8.27203]
[1742324582835,0.01,1896.9,1896.8,9.706803]
[1742324583972,0.01,1896.9,1896.8,10.484003]
[1742324587649,0.01,1896.9,1896.8,16.624003]
[1742324588480,1e-05,1896.9,1896.8,21.726003]
[1742324588778,7.1e-06,1897.1,1897.0,9.63848]
[1742324588990,5.26747,1898.5,1898.1,5.26829]
[1742324589284,2.74199823,1898.2,1898.1,5.26829]
[1742324589581,2.74199823,1898.2,1897.9,3.0]
[1742324589784,8.01080823,1898.0,1897.6,10.53938]
[1742324589951,2.74199823,1897.7,1897.6,8.26967]
[1742324590147,5.26851,1898.1,1897.7,5.26941]
[1742324590449,8.01139823,1897.8,1897.4,12.2231]
[1742324590678,0.8017,1897.8,1897.5,8.27007]
[1742324590990,5.26994,1897.6,1897.1,5.27101]
[1742324591282,10.39012,1897.5,1897.1,6.6715733]
[1742324591454,0.8186,1897.4,1897.0,5.27145]
[1742324591649,6.08905,1897.4,1897.0,5.27145]
[1742324591851,2.74199823,1897.1,1897.0,10.54279]
[1742324592095,2.74199823,1897.1,1897.0,3.0]
[1742324592295,2.74199823,1897.1,1897.0,5.27148]
[1742324592518,2.74199823,1897.1,1897.0,8.27148]
[1742324592876,2.74199823,1897.1,1897.0,9.27621245]
[1742324593518,2.74199823,1897.1,1897.0,8.27148]
[1742324594885,2.74199823,1897.1,1897.0,3.0]
[1742324595325,2.74199823,1897.1,1896.8,6.706783]
[1742324595531,2.74199823,1896.9,1896.8,8.27201]
[1742324596431,2.74199823,1896.9,1896.8,3.0]
[1742324596724,2.74199823,1896.9,1896.8,8.27203]
[1742324598011,7.85599823,1897.1,1896.9,5.27174]
[1742324598211,7.85599823,1897.1,1896.9,6.626117]
[1742324598411,7.85599823,1897.1,1896.9,5.27174]
[1742324598638,7.85599823,1897.1,1896.9,5.27164]